fUST/lending_fUST_20260307
["ID","MTS","AMOUNT","RATE_DAILY","PERIOD"]
[407893240,1772898680958,-2000.0,0.00015342,2]
[407893241,1772898680970,-2000.0,0.00015342,2]
[407893242,1772898680982,-2000.0,0.00015342,2]
[407893243,1772898680995,-2000.0,0.00015342,2]
[407893244,1772898681004,-2000.0,0.00015342,2]
[407893245,1772898681014,-2000.0,0.00015342,2]
[407893246,1772898681026,-899.91200359,0.00015342,2]
[407893247,1772898681037,-2000.0,0.00015342,2]
[407893248,1772898681057,-2454.02525673,0.00015348,30]
[407893249,1772898681068,-2545.1665868,0.00015359,14]
[407893250,1772898681078,-443.29357419,0.00015371,14]
[407893251,1772898681091,-2000.0,0.000154,2]
[407893252,1772898681101,-2000.0,0.000154,2]
[407893253,1772898681112,-2812.37317597,0.00015409,30]
[407893254,1772898681123,-2670.42621148,0.00015422,30]
[407893255,1772898681134,-151.0,0.00015433,2]
[407893256,1772898681145,-242.85388463,0.00015435,14]
[407893257,1772898681157,-2780.93739967,0.00015435,30]
[407893258,1772898681168,-194.07952959,0.00015436,14]
[407893259,1772898681178,-1019.89269358,0.00015451,14]
[407893260,1772898681190,-250.64583484,0.00015478,2]
[407893261,1772898681201,-1500.0,0.00015479,2]
[407893262,1772898681213,-936.67799297,0.00015486,14]
[407893263,1772898681223,-2084.73,0.0001549,2]
[407893264,1772898681235,-3000.0,0.000155,2]
[407893265,1772898681248,-1000.0,0.000155,2]
[407893266,1772898681258,-1613.64705667,0.000155,2]
[407893267,1772898681268,-2000.0,0.000155,2]
[407893268,1772898681278,-2000.0,0.000155,2]
[407893269,1772898681288,-1656.74812956,0.000155,2]
[407893270,1772898681298,-2000.0,0.000155,2]
[407893271,1772898681307,-850.0,0.00015508,2]
[407893272,1772898681317,-2724.78725047,0.00015509,30]
[407893273,1772898681326,-3449.14412057,0.0001552,2]
[407893274,1772898681336,-1555.5,0.00015534,2]
[407893275,1772898681345,-2796.93312008,0.00015539,30]
[407893276,1772898681355,-2454.02525673,0.00015562,30]
[407893277,1772898681365,-2000.0,0.00015589,7]
[407893278,1772898681375,-1613.0535,0.00015589,2]
[407893279,1772898681384,-646.54,0.000156,2]
[407893280,1772898681394,-1677.13,0.000156,2]
[407893281,1772898681403,-1442.33,0.000156,2]
[407893282,1772898681413,-1173.99,0.000156,2]
[407893283,1772898681422,-201.31944268,0.000156,2]
[407893284,1772898681432,-189.08543637,0.000156,2]
[407893285,1772898681442,-2000.0,0.000156,2]
[407893286,1772898681451,-2000.0,0.000156,2]
[407893287,1772898681460,-2000.0,0.000156,2]
[407893288,1772898681471,-2000.0,0.000156,2]
[407893289,1772898681480,-283.12577878,0.000156,2]
[407893290,1772898681714,-1641.25204585,0.000156,2]
[407893291,1772898681725,-2000.0,0.000156,2]
[407893292,1772898681735,-2000.0,0.000156,2]
[407893293,1772898681744,-2000.0,0.000156,2]
[407893294,1772898681753,-713.1943404,0.000156,2]
[407893295,1772898681763,-1613.60691074,0.00015601,14]
[407893296,1772898681772,-500.14,0.00015616,2]
[407893297,1772898681781,-500.0,0.00015616,2]
[407893298,1772898681791,-1552.63623676,0.0001562,14]
[407893299,1772898681800,-2812.37317597,0.00015626,30]
[407893300,1772898681809,-5000.0,0.0001564,2]
[407893301,1772898681819,-1672.7364795,0.00015644,2]
[407893302,1772898681829,-2780.93739967,0.00015653,30]
[407893303,1772898681839,-443.29357419,0.00015677,14]
[407893304,1772898681848,-1734.62772924,0.00015699,2]
[407893305,1772898681858,-1981.0,0.000157,2]
[407893306,1772898681867,-1000.0,0.000157,5]
[407893307,1772898681877,-303.62,0.000157,7]
[407893308,1772898681886,-2168.0,0.000157,2]
[407893309,1772898681895,-500.0,0.000157,2]
[407893310,1772898681905,-2000.0,0.000157,2]
[407893311,1772898681914,-2000.0,0.000157,2]
[407893312,1772898681923,-335.75,0.000157,2]
[407893313,1772898681932,-500.0,0.000157,2]
[407893314,1772898681942,-500.0,0.000157,2]
[407893315,1772898681951,-292.33,0.000157,2]
[407893316,1772898681960,-254.36,0.000157,2]
[407893317,1772898681969,-184.81,0.000157,2]
[407893318,1772898681978,-500.0,0.000157,2]
[407893319,1772898681987,-500.0,0.000157,2]
[407893320,1772898681996,-500.0,0.000157,2]
[407893321,1772898682005,-500.0,0.000157,2]
[407893322,1772898682015,-500.0,0.000157,2]
[407893323,1772898682024,-500.0,0.000157,2]
[407893324,1772898682034,-500.0,0.000157,2]
[407893325,1772898682045,-500.0,0.000157,2]
[407893326,1772898682054,-500.0,0.000157,2]
[407893327,1772898682064,-500.0,0.000157,2]
[407893328,1772898682073,-500.0,0.000157,2]
[407893329,1772898682083,-184.02,0.00015709,2]
[407893330,1772898682093,-5191.8181283,0.00015709,120]
[407893331,1772898682103,-2724.78725047,0.00015721,30]
[407893332,1772898682113,-2796.93312008,0.00015752,30]
[407893333,1772898682122,-1798.80895522,0.00015754,2]
[407893334,1772898682131,-2084.73,0.0001576,2]
[407893335,1772898682141,-1019.89269358,0.00015763,14]
[407893336,1772898682151,-2454.02525673,0.00015776,30]
[407893337,1772898682159,-1291.0,0.000158,2]
[407893338,1772898682168,-155.7,0.000158,2]
[407893339,1772898682178,-200.0,0.000158,120]
[407893340,1772898682187,-936.67799297,0.00015801,14]
[407893341,1772898682196,-2330.11075786,0.00015808,30]
[407893342,1772898682205,-1865.36488657,0.00015809,2]
[407893343,1772898682215,-258.51951775,0.0001583,14]
[407893344,1772898682224,-165.96035741,0.0001583,14]
[407893345,1772898682233,-361.12792267,0.0001583,14]
[407893346,1772898682243,-2812.37317597,0.00015842,30]
[407893347,1772898682252,-1934.38338737,0.00015864,2]
[407893348,1772898682262,-2780.93739967,0.0001587,30]
[407893349,1772898682271,-500.14,0.0001589,2]
[407893350,1772898682281,-151.0,0.0001589,2]
[407893351,1772898682290,-151.0,0.0001589,2]
[407893352,1772898682299,-151.0,0.0001589,2]
[407893353,1772898682308,-151.0,0.0001589,2]
[407893354,1772898682318,-151.0,0.0001589,2]
[407893355,1772898682327,-151.0,0.0001589,2]
[407893356,1772898682336,-151.0,0.0001589,2]
[407893357,1772898682346,-151.0,0.0001589,2]
[407893358,1772898682355,-151.0,0.0001589,2]
[407893359,1772898682365,-151.0,0.0001589,2]
[407893360,1772898682375,-151.0,0.0001589,2]
[407893361,1772898682384,-151.0,0.0001589,2]
[407893362,1772898682394,-151.0,0.0001589,2]
[407893363,1772898682404,-301.51612617,0.0001589,2]
[407893364,1772898682415,-500.0,0.0001589,2]
[407893365,1772898682427,-2500.0,0.0001589,2]
[407893366,1772898682438,-2210.76659407,0.0001589,2]
[407893367,1772898682447,-1206.59172711,0.0001589,2]
[407893368,1772898682456,-1692.64591519,0.0001589,2]
[407893369,1772898682465,-354.6489564,0.0001589,2]
[407893370,1772898682474,-2500.0,0.0001589,2]
[407893371,1772898682483,-2500.0,0.0001589,2]
[407893372,1772898682492,-2500.0,0.0001589,2]
[407893373,1772898682502,-1705.29868255,0.0001589,2]
[407893374,1772898682511,-2500.0,0.0001589,2]
[407893375,1772898682521,-2067.68956904,0.0001589,2]
[407893376,1772898682530,-1535.33965907,0.0001589,2]
[407893377,1772898682540,-1348.66091516,0.0001589,2]
[407893378,1772898682549,-2500.0,0.0001589,2]
[407893379,1772898682559,-462.75039611,0.0001589,2]
[407893380,1772898682568,-176.16694661,0.0001589,2]
[407893381,1772898682579,-2500.0,0.0001589,2]
[407893382,1772898682591,-2500.0,0.0001589,2]
[407893383,1772898682601,-2025.37505654,0.0001589,2]
[407893384,1772898682611,-619.49628409,0.0001589,2]
[407893385,1772898682623,-430.20471798,0.0001589,2]
[407893386,1772898682632,-1837.61000207,0.0001589,2]
[407893387,1772898682643,-1953.77042818,0.0001589,2]
[407893388,1772898682652,-846.93690545,0.0001589,2]
[407893389,1772898682662,-2500.0,0.0001589,2]
[407893390,1772898682671,-1029.89795206,0.0001589,2]
[407893391,1772898682681,-2483.13786377,0.0001589,2]
[407893392,1772898682692,-2500.0,0.0001589,2]
[407893393,1772898682701,-1348.8669888,0.0001589,2]
[407893394,1772898682711,-1193.89352787,0.0001589,2]
[407893395,1772898682722,-2069.40019555,0.0001589,2]
[407893396,1772898682732,-2500.0,0.0001589,2]
[407893397,1772898682742,-1396.01210859,0.0001589,2]
[407893398,1772898682752,-2500.0,0.0001589,2]
[407893399,1772898682763,-2500.0,0.0001589,2]
[407893400,1772898682772,-2500.0,0.0001589,2]
[407893401,1772898682782,-2500.0,0.0001589,2]
[407893402,1772898682791,-2000.0,0.000159,2]
[407893403,1772898682800,-160.0,0.000159,2]
[407893404,1772898682809,-2000.0,0.00015904,7]
[407893405,1772898682818,-160.09891951,0.00015912,14]
[407893406,1772898682828,-186.32325096,0.00015919,14]
[407893407,1772898682837,-480.7021759,0.00015919,14]
[407893408,1772898682846,-2005.9555727,0.00015919,2]
[407893409,1772898682855,-1613.60691074,0.00015925,14]
[407893410,1772898682864,-2724.78725047,0.00015933,30]
[407893411,1772898682874,-1552.63623676,0.00015945,14]
[407893412,1772898682883,-275.15054313,0.00015958,14]
[407893413,1772898682893,-583.31458901,0.00015958,14]
[407893414,1772898682902,-596.19331906,0.00015958,14]
[407893415,1772898682911,-198.73110635,0.00015958,14]
[407893416,1772898682921,-194.43819632,0.00015958,14]
[407893417,1772898682931,-2796.93312008,0.00015965,30]
[407893418,1772898682940,-833.02201061,0.00015974,2]
[407893419,1772898682950,-443.29357419,0.00015982,14]
[407893420,1772898682959,-2454.02525673,0.0001599,30]
[407893421,1772898682969,-217.27742316,0.00016,2]
[407893422,1772898682978,-10000.0,0.00016,2]
[407893423,1772898682988,-12136.0,0.00016,2]
[407893424,1772898682998,-5637.1293957,0.00016,2]
[407893425,1772898683007,-3000.0,0.00016,2]
[407893426,1772898683016,-1000.0,0.00016,2]
[407893427,1772898683026,-309.44381872,0.00016007,14]
[407893428,1772898683036,-192.17987099,0.00016007,14]
[407893429,1772898683050,-171.4181021,0.00016007,14]
[407893430,1772898683060,-3000.0,0.0001601,2]
[407893431,1772898683069,-3000.0,0.0001602,2]
[407893432,1772898683079,-236.6832982,0.0001602,14]
[407893433,1772898683088,-3000.0,0.0001603,2]
[407893434,1772898683098,-2084.73,0.0001603,2]
[407893435,1772898683109,-3000.0,0.0001604,2]
[407893436,1772898683121,-3000.0,0.0001605,2]
[407893437,1772898683131,-950.0,0.00016056,2]
[407893438,1772898683140,-2812.37317597,0.00016059,30]
[407893439,1772898683150,-3000.0,0.0001606,2]
[407893440,1772898683159,-3576.76245303,0.00016068,2]
[407893441,1772898683169,-3000.0,0.0001607,2]
[407893442,1772898683178,-1019.89269358,0.00016075,30]
[407893443,1772898683187,-3000.0,0.0001608,2]
[407893444,1772898683196,-3000.0,0.0001609,2]
[407893445,1772898683205,-3000.0,0.000161,2]
[407893446,1772898683216,-179.81800295,0.00016107,14]
[407893447,1772898683225,-3000.0,0.0001611,2]
[407893448,1772898683234,-936.67799297,0.00016115,30]
[407893449,1772898683244,-3000.0,0.0001612,2]
[407893450,1772898683253,-3000.0,0.0001613,2]
[407893451,1772898683263,-3000.0,0.0001614,2]
[407893452,1772898683272,-2724.78725047,0.00016145,30]
[407893453,1772898683281,-3000.0,0.0001615,2]
[407893454,1772898683291,-3000.0,0.0001616,2]
[407893455,1772898683300,-500.14,0.00016164,2]
[407893456,1772898683311,-500.0,0.00016164,2]
[407893457,1772898683320,-3000.0,0.0001617,2]
[407893458,1772898683330,-2796.93312008,0.00016178,30]
[407893459,1772898683340,-3000.0,0.0001618,2]
[407893460,1772898683351,-207.8336509,0.0001618,14]
[407893461,1772898683361,-162.86603265,0.0001618,14]
[407893462,1772898683370,-3000.0,0.0001619,2]
[407893463,1772898683379,-3000.0,0.000162,2]
[407893464,1772898683388,-2454.02525673,0.00016204,30]
[407893465,1772898683397,-3000.0,0.0001621,2]
[407893466,1772898683407,-2000.0,0.00016219,7]
[407893467,1772898683418,-3000.0,0.0001622,2]
[407893468,1772898683428,-167.29567624,0.00016229,14]
[407893469,1772898683438,-162.14613078,0.00016229,14]
[407893470,1772898683447,-3000.0,0.0001623,2]
[407893471,1772898683456,-3000.0,0.0001624,2]
[407893472,1772898683466,-1613.60691074,0.00016248,30]
[407893473,1772898683475,-3000.0,0.0001625,2]
[407893474,1772898683484,-3000.0,0.0001626,2]
[407893475,1772898683493,-1552.63623676,0.00016269,30]
[407893476,1772898683502,-3000.0,0.0001627,2]
[407893477,1772898683511,-2812.37317597,0.00016275,30]
[407893478,1772898683520,-3000.0,0.0001628,2]
[407893479,1772898683529,-443.29357419,0.00016288,14]
[407893480,1772898683538,-3000.0,0.0001629,2]
[407893481,1772898683547,-555.0,0.000163,2]
[407893482,1772898683556,-3000.0,0.000163,2]
[407893483,1772898683565,-2084.73,0.000163,2]
[407893484,1772898683574,-2780.93739967,0.00016305,30]
[407893485,1772898683583,-3000.0,0.0001631,2]
[407893486,1772898683592,-3000.0,0.0001632,2]
[407893487,1772898683601,-555.0,0.00016328,2]
[407893488,1772898683610,-3000.0,0.0001633,2]
[407893489,1772898683619,-555.0,0.00016331,2]
[407893490,1772898683628,-3000.0,0.0001634,2]
[407893491,1772898683637,-203.71390907,0.00016349,14]
[407893492,1772898683646,-158.92529791,0.00016349,14]
[407893493,1772898683655,-3000.0,0.0001635,2]
[407893494,1772898683664,-2724.78725047,0.00016357,30]
[407893495,1772898683674,-3000.0,0.0001636,2]
[407893496,1772898683683,-3000.0,0.0001637,2]
[407893497,1772898683691,-3000.0,0.0001638,2]
[407893498,1772898683700,-1019.89269358,0.00016386,30]
[407893499,1772898683709,-3000.0,0.0001639,2]
[407893500,1772898683719,-2796.93312008,0.00016391,30]
[407893501,1772898683728,-3000.0,0.000164,2]
[407893502,1772898683737,-160.0,0.000164,2]
[407893503,1772898683747,-3000.0,0.0001641,2]
[407893504,1772898683756,-2454.02525673,0.00016418,30]
[407893505,1772898683766,-3000.0,0.0001642,2]
[407893506,1772898683775,-936.67799297,0.00016429,30]
[407893507,1772898683784,-3000.0,0.0001643,2]
[407893508,1772898683793,-151.0,0.00016433,2]
[407893509,1772898683803,-200.0,0.00016438,2]
[407893510,1772898683811,-500.14,0.00016438,2]
[407893511,1772898683820,-500.0,0.00016438,2]
[407893512,1772898683829,-603.87437907,0.00016438,2]
[407893513,1772898683839,-500.0,0.00016438,2]
[407893514,1772898683850,-151.0,0.00016438,2]
[407893515,1772898683859,-151.0,0.00016438,2]
[407893516,1772898683868,-151.0,0.00016438,2]
[407893517,1772898683877,-151.0,0.00016438,2]
[407893518,1772898683886,-151.0,0.00016438,2]
[407893519,1772898683895,-151.0,0.00016438,2]
[407893520,1772898683904,-151.0,0.00016438,2]
[407893521,1772898683914,-151.0,0.00016438,2]
[407893522,1772898683923,-151.0,0.00016438,2]
[407893523,1772898683932,-151.0,0.00016438,2]
[407893524,1772898683942,-151.0,0.00016438,2]
[407893525,1772898683951,-254.656379,0.00016438,2]
[407893526,1772898683960,-151.0,0.00016438,2]
[407893527,1772898683970,-151.0,0.00016438,2]
[407893528,1772898683979,-151.0,0.00016438,2]
[407893529,1772898683988,-151.0,0.00016438,2]
[407893530,1772898683997,-151.0,0.00016438,2]
[407893531,1772898684007,-151.0,0.00016438,2]
[407893532,1772898684016,-151.0,0.00016438,2]
[407893533,1772898684026,-151.0,0.00016438,2]
[407893534,1772898684035,-157.543557,0.00016438,2]
[407893535,1772898684048,-200.0,0.00016438,3]
[407893536,1772898684057,-200.0,0.00016438,3]
[407893537,1772898684067,-200.0,0.00016438,3]
[407893538,1772898684075,-200.0,0.00016438,3]
[407893539,1772898684085,-200.0,0.00016438,3]
[407893540,1772898684095,-200.0,0.00016438,3]
[407893541,1772898684104,-151.0,0.00016438,2]
[407893542,1772898684115,-151.0,0.00016438,2]
[407893543,1772898684124,-151.0,0.00016438,2]
[407893544,1772898684133,-151.0,0.00016438,2]
[407893545,1772898684142,-151.0,0.00016438,2]
[407893546,1772898684152,-151.0,0.00016438,2]
[407893547,1772898684160,-151.0,0.00016438,2]
[407893548,1772898684169,-151.0,0.00016438,2]
[407893549,1772898684178,-151.0,0.00016438,2]
[407893550,1772898684188,-151.0,0.00016438,2]
[407893551,1772898684197,-151.0,0.00016438,2]
[407893552,1772898684206,-151.0,0.00016438,2]
[407893553,1772898684218,-151.0,0.00016438,2]
[407893554,1772898684229,-211.706465,0.00016438,2]
[407893555,1772898684238,-151.0,0.00016438,2]
[407893556,1772898684247,-151.0,0.00016438,2]
[407893557,1772898684256,-151.0,0.00016438,2]
[407893558,1772898684265,-151.0,0.00016438,2]
[407893559,1772898684273,-151.0,0.00016438,2]
[407893560,1772898684283,-151.0,0.00016438,2]
[407893561,1772898684292,-151.0,0.00016438,2]
[407893562,1772898684301,-151.0,0.00016438,2]
[407893563,1772898684311,-151.0,0.00016438,2]
[407893564,1772898684320,-235.378977,0.00016438,2]
[407893565,1772898684330,-151.0,0.00016438,2]
[407893566,1772898684339,-151.0,0.00016438,2]
[407893567,1772898684349,-151.0,0.00016438,2]
[407893568,1772898684360,-151.0,0.00016438,2]
[407893569,1772898684369,-151.0,0.00016438,2]
[407893570,1772898684379,-151.0,0.00016438,2]
[407893571,1772898684389,-151.0,0.00016438,2]
[407893572,1772898684398,-151.0,0.00016438,2]
[407893573,1772898684407,-151.0,0.00016438,2]
[407893574,1772898684416,-151.0,0.00016438,2]
[407893575,1772898684426,-151.0,0.00016438,2]
[407893576,1772898684436,-151.0,0.00016438,2]
[407893577,1772898684445,-151.0,0.00016438,2]
[407893578,1772898684454,-151.0,0.00016438,2]
[407893579,1772898684464,-249.74390281,0.00016438,2]
[407893580,1772898684473,-165.42540899,0.00016438,2]
[407893581,1772898684482,-1375.23438562,0.00016438,2]
[407893582,1772898684491,-3000.0,0.00016438,2]
[407893583,1772898684500,-3000.0,0.00016438,2]
[407893584,1772898684510,-3000.0,0.00016438,2]
[407893585,1772898684519,-1204.41910535,0.00016438,2]
[407893586,1772898684529,-3000.0,0.00016438,2]
[407893587,1772898684538,-2500.0,0.00016438,2]
[407893588,1772898684548,-2500.0,0.00016438,2]
[407893589,1772898684558,-1294.43774439,0.00016438,2]
[407893590,1772898684567,-3000.0,0.00016438,2]
[407893591,1772898684576,-3000.0,0.00016438,2]
[407893592,1772898684586,-391.56911511,0.00016438,2]
[407893593,1772898684595,-1307.79274334,0.00016438,2]
[407893594,1772898684605,-3039.23297083,0.00016438,2]
[407893595,1772898684615,-1716.12712911,0.00016438,2]
[407893596,1772898684624,-3000.0,0.0001644,2]
[407893597,1772898684633,-3000.0,0.0001645,2]
[407893598,1772898684643,-3000.0,0.0001646,2]
[407893599,1772898684652,-152.37089504,0.00016462,30]
[407893600,1772898684661,-361.12792267,0.00016462,30]
[407893601,1772898684670,-3000.0,0.0001647,2]
[407893602,1772898684679,-3000.0,0.0001648,2]
[407893603,1772898684689,-154.94,0.00016485,2]
[407893604,1772898684698,-500.0,0.00016485,2]
[407893605,1772898684708,-422.03,0.00016485,2]
[407893606,1772898684718,-3000.0,0.0001649,2]
[407893607,1772898684727,-3000.0,0.000165,2]
[407893608,1772898684736,-1000.0,0.000165,2]
[407893609,1772898684746,-3000.0,0.0001651,2]
[407893610,1772898684755,-3000.0,0.0001652,2]
[407893611,1772898684765,-2780.93739967,0.00016523,30]
[407893612,1772898684775,-3000.0,0.0001653,2]
[407893613,1772898684785,-2000.0,0.00016534,7]
[407893614,1772898684795,-3000.0,0.0001654,2]
[407893615,1772898684804,-3000.0,0.0001655,2]
[407893616,1772898684814,-153.54818496,0.00016557,30]
[407893617,1772898684823,-3000.0,0.0001656,2]
[407893618,1772898684832,-168.89497338,0.00016564,30]
[407893619,1772898684841,-480.7021759,0.00016564,30]
[407893620,1772898684850,-2724.78725047,0.00016569,30]
[407893621,1772898684859,-4471.539941,0.0001657,2]
[407893622,1772898684868,-2084.73,0.0001657,2]
[407893623,1772898684878,-1613.60691074,0.00016571,30]
[407893624,1772898684888,-154.91,0.0001659,2]
[407893625,1772898684898,-443.29357419,0.00016593,14]
[407893626,1772898684908,-1552.63623676,0.00016594,30]
[407893627,1772898684918,-1050.0,0.00016604,2]
[407893628,1772898684928,-2796.93312008,0.00016604,30]
[407893629,1772898684938,-206.19756192,0.00016609,30]
[407893630,1772898684948,-583.31458901,0.00016609,14]
[407893631,1772898684959,-596.19331906,0.00016609,30]
[407893632,1772898684969,-3709.10266379,0.00016616,2]
[407893633,1772898684979,-2454.02525673,0.00016632,30]
[407893634,1772898684989,-264.81955111,0.00016639,30]
[407893635,1772898684999,-231.82887809,0.00016639,30]
[407893636,1772898685009,-194.99977778,0.00016639,30]
[407893637,1772898685018,-223.814,0.00016658,2]
[407893638,1772898685031,-1019.89269358,0.00016698,30]
[407893639,1772898685044,-500.14,0.00016712,2]
[407893640,1772898685053,-693.8,0.00016712,2]
[407893641,1772898685063,-500.0,0.00016712,2]
[407893642,1772898685073,-2780.93739967,0.0001674,30]
[407893643,1772898685083,-936.67799297,0.00016744,30]
[407893644,1772898685092,-242.85388463,0.0001678,30]
[407893645,1772898685102,-194.07952959,0.00016782,30]
[407893646,1772898685112,-2796.93312008,0.00016817,30]
[407893647,1772898685342,-169.98211559,0.00016823,30]
[407893648,1772898685352,-2084.73,0.0001684,2]
[407893649,1772898685362,-2000.0,0.00016849,7]
[407893650,1772898685371,-1613.60691074,0.00016894,30]
[407893651,1772898685381,-443.29357419,0.00016899,14]
[407893652,1772898685390,-2000.0,0.000169,2]
[407893653,1772898685400,-1552.63623676,0.00016919,30]
[407893654,1772898685409,-2780.93739967,0.00016957,30]
[407893655,1772898685418,-500.14,0.00016986,2]
[407893656,1772898685427,-693.8,0.00016986,2]
[407893657,1772898685436,-500.0,0.00016986,2]
[407893658,1772898685446,-250.0,0.00016986,2]
[407893659,1772898685455,-3500.0,0.00016986,2]
[407893660,1772898685465,-3500.0,0.00016986,2]
[407893661,1772898685474,-683.93743362,0.00016986,2]
[407893662,1772898685484,-3500.0,0.00016986,2]
[407893663,1772898685494,-3500.0,0.00016986,2]
[407893664,1772898685503,-3500.0,0.00016986,2]
[407893665,1772898685513,-21152.0,0.00017,2]
[407893666,1772898685524,-111964.25870109,0.00017,2]
[407893667,1772898685534,-1000.0,0.00017,2]
[407893668,1772898685544,-282.20371767,0.00017,2]
[407893669,1772898685554,-10000.0,0.00017,2]
[407893670,1772898685564,-2840.63,0.00017,120]
[407893671,1772898685574,-200.0,0.00017,3]
[407893672,1772898685585,-2002.0,0.00017,2]
[407893673,1772898685595,-3296.0,0.00017,7]
[407893674,1772898685604,-160.0,0.00017,2]
[407893675,1772898685614,-1000.0,0.00017,2]
[407893676,1772898685623,-1019.89269358,0.0001701,30]
[407893677,1772898685632,-2796.93312008,0.0001703,30]
[407893678,1772898685643,-936.67799297,0.00017058,30]
[407893679,1772898685654,-2454.02525673,0.00017059,30]
[407893680,1772898685663,-361.12792267,0.00017095,30]
[407893681,1772898685674,-2084.73,0.0001711,2]
[407893682,1772898685683,-1150.0,0.00017152,2]
[407893683,1772898685694,-2000.0,0.00017164,7]
[407893684,1772898685705,-3846.33946235,0.00017164,2]
[407893685,1772898685715,-2780.93739967,0.00017175,30]
[407893686,1772898685725,-6000.731761,0.00017204,7]
[407893687,1772898685734,-443.29357419,0.00017204,30]
[407893688,1772898685744,-480.7021759,0.0001721,30]
[407893689,1772898685753,-1613.60691074,0.00017217,30]
[407893690,1772898685764,-23477.2489029,0.00017243,3]
[407893691,1772898685774,-2796.93312008,0.00017243,30]
[407893692,1772898685783,-1552.63623676,0.00017243,30]
[407893693,1772898685792,-583.31458901,0.0001726,30]
[407893694,1772898685802,-596.19331906,0.0001726,30]
[407893695,1772898685812,-500.31609087,0.0001726,2]
[407893696,1772898685821,-693.8,0.0001726,2]
[407893697,1772898685830,-500.0,0.0001726,2]
[407893698,1772898685839,-154.86,0.0001727,2]
[407893699,1772898685848,-154.94,0.0001727,2]
[407893700,1772898685857,-500.0,0.0001727,2]
[407893701,1772898685867,-422.03,0.0001727,2]
[407893702,1772898685876,-2454.02525673,0.00017273,30]
[407893703,1772898685886,-165.96035741,0.00017306,30]
[407893704,1772898685895,-1019.89269358,0.00017321,30]
[407893705,1772898685905,-936.67799297,0.00017372,30]
[407893706,1772898685914,-2084.73,0.0001738,2]
[407893707,1772898685923,-2780.93739967,0.00017392,30]
[407893708,1772898685933,-151.0,0.00017433,2]
[407893709,1772898685942,-2796.93312008,0.00017456,60]
[407893710,1772898685952,-2000.0,0.00017479,7]
[407893711,1772898685961,-2454.02525673,0.00017487,60]
[407893712,1772898685970,-301.66,0.000175,2]
[407893713,1772898685979,-160.0,0.000175,2]
[407893714,1772898685989,-1000.0,0.000175,2]
[407893715,1772898685999,-443.29357419,0.0001751,30]
[407893716,1772898686008,-693.8,0.00017534,2]
[407893717,1772898686018,-500.0,0.00017534,2]
[407893718,1772898686027,-350.0,0.00017534,2]
[407893719,1772898686037,-4000.0,0.00017534,2]
[407893720,1772898686050,-4000.0,0.00017534,2]
[407893721,1772898686059,-4000.0,0.00017534,2]
[407893722,1772898686069,-4000.0,0.00017534,2]
[407893723,1772898686078,-4000.0,0.00017534,2]
[407893724,1772898686089,-1613.60691074,0.00017541,30]
[407893725,1772898686098,-171.4181021,0.00017543,30]
[407893726,1772898686107,-1552.63623676,0.00017568,30]
[407893727,1772898686117,-2151.94795039,0.000176,2]
[407893728,1772898686127,-2780.93739967,0.0001761,60]
[407893729,1772898686136,-1019.89269358,0.00017633,30]
[407893730,1772898686150,-2084.73,0.0001765,2]
[407893731,1772898686159,-2796.93312008,0.00017669,60]
[407893732,1772898686168,-936.67799297,0.00017687,30]
[407893733,1772898686177,-1379.37342597,0.000177,2]
[407893734,1772898686187,-2454.02525673,0.00017701,60]
[407893735,1772898686197,-3988.65402246,0.00017712,2]
[407893736,1772898686205,-152.37089504,0.00017728,60]
[407893737,1772898686215,-361.12792267,0.00017728,60]
[407893738,1772898686224,-162.86603265,0.00017774,30]
[407893739,1772898686233,-2000.0,0.00017795,7]